[Event "Live Chess"]
[Site "Chess.com"]
[Date "2024.06.02"]
[Round "-"]
[White "Duke_of_Bebington"]
[Black "Crowded_House"]
[Result "1-0"]
[WhiteElo "1696"]
[BlackElo "1667"]
[TimeControl "300"]
[EndTime "0:45:16 PDT"]
[Termination "Duke_of_Bebington won by checkmate"]

1. e4 {[%clk 0:04:58]} 1... e6 {[%clk 0:04:59.6]} 2. d4 {[%clk 0:04:55.7]} 2...
d5 {[%clk 0:04:59.3]} 3. Nd2 {[%clk 0:04:55.1]} 3... dxe4 {[%clk 0:04:57.9]} 4.
Nxe4 {[%clk 0:04:53.4]} 4... Bd7 {[%clk 0:04:57.5]} 5. Bd3 {[%clk 0:04:51.1]}
5... Bc6 {[%clk 0:04:56.5]} 6. Nf3 {[%clk 0:04:48.2]} 6... Nd7 {[%clk
0:04:53.9]} 7. O-O {[%clk 0:04:46.4]} 7... Ngf6 {[%clk 0:04:53.5]} 8. Re1 {[%clk
0:04:44.7]} 8... Be7 {[%clk 0:04:48.5]} 9. Bf4 {[%clk 0:04:39]} 9... O-O {[%clk
0:04:43.2]} 10. c3 {[%clk 0:04:36.7]} 10... Nh5 {[%clk 0:04:35]} 11. Bc1 {[%clk
0:04:32.8]} 11... Nhf6 {[%clk 0:04:32.9]} 12. Ng3 {[%clk 0:04:16.6]} 12... h6
{[%clk 0:04:24.3]} 13. Bb1 {[%clk 0:04:12]} 13... Nb6 {[%clk 0:04:22.5]} 14. Qd3
{[%clk 0:04:08.3]} 14... Qd7 {[%clk 0:03:58.7]} 15. Ne5 {[%clk 0:04:04.3]} 15...
Qd5 {[%clk 0:03:44.2]} 16. Nxc6 {[%clk 0:04:02.8]} 16... Qxc6 {[%clk 0:03:37]}
17. Nh5 {[%clk 0:04:00.8]} 17... g6 {[%clk 0:03:24.3]} 18. Nxf6+ {[%clk
0:03:57]} 18... Bxf6 {[%clk 0:03:23]} 19. Bxh6 {[%clk 0:03:56.5]} 19... Bg7
{[%clk 0:03:20.6]} 20. Bxg7 {[%clk 0:03:29.1]} 20... Kxg7 {[%clk 0:03:19.4]} 21.
b3 {[%clk 0:03:28.3]} 21... Rad8 {[%clk 0:03:09.1]} 22. Qg3 {[%clk 0:03:23.7]}
22... Qd6 {[%clk 0:02:59.3]} 23. Re3 {[%clk 0:03:06.1]} 23... Qxg3 {[%clk
0:02:57.5]} 24. Rxg3 {[%clk 0:03:04.5]} 24... Rh8 {[%clk 0:02:51.2]} 25. Be4
{[%clk 0:03:02]} 25... c6 {[%clk 0:02:48.6]} 26. Re1 {[%clk 0:02:59.8]} 26...
Nd5 {[%clk 0:02:44.9]} 27. Bxd5 {[%clk 0:02:58.3]} 27... cxd5 {[%clk 0:02:43.2]}
28. Ree3 {[%clk 0:02:54.5]} 28... Rc8 {[%clk 0:02:37.2]} 29. Kf1 {[%clk
0:02:51]} 29... Rc7 {[%clk 0:02:30.7]} 30. h3 {[%clk 0:02:49.2]} 30... Rhc8
{[%clk 0:02:24.6]} 31. Ke2 {[%clk 0:02:48.6]} 31... Rc6 {[%clk 0:02:20.3]} 32.
Kd2 {[%clk 0:02:47.7]} 32... Ra6 {[%clk 0:02:19.4]} 33. a4 {[%clk 0:02:46.6]}
33... Rcc6 {[%clk 0:02:13.1]} 34. Re5 {[%clk 0:02:28.5]} 34... Rcb6 {[%clk
0:02:00.5]} 35. Kc2 {[%clk 0:02:26.7]} 35... Rc6 {[%clk 0:01:51.9]} 36. h4
{[%clk 0:02:25]} 36... Kf8 {[%clk 0:01:50]} 37. h5 {[%clk 0:02:23.3]} 37... gxh5
{[%clk 0:01:48.8]} 38. Rxh5 {[%clk 0:02:22.1]} 38... Rc7 {[%clk 0:01:40.9]} 39.
Rh8+ {[%clk 0:02:15.8]} 39... Ke7 {[%clk 0:01:36.4]} 40. Rh7 {[%clk 0:02:15.4]}
40... Kf8 {[%clk 0:01:34.1]} 41. Rf3 {[%clk 0:02:12.5]} 41... Rd6 {[%clk
0:01:27.5]} 42. g4 {[%clk 0:02:07.6]} 42... Kg8 {[%clk 0:01:22.5]} 43. Rh5
{[%clk 0:02:03.1]} 43... Kg7 {[%clk 0:01:15.8]} 44. g5 {[%clk 0:02:01.8]} 44...
Rd8 {[%clk 0:01:09.5]} 45. Rfh3 {[%clk 0:01:55.2]} 45... Kg6 {[%clk 0:01:01.7]}
46. f4 {[%clk 0:01:52.1]} 46... Rcc8 {[%clk 0:00:56.6]} 47. Kd3 {[%clk
0:01:42.3]} 47... Rg8 {[%clk 0:00:49.1]} 48. Rh7 {[%clk 0:01:34.1]} 48... Rg7
{[%clk 0:00:47.9]} 49. R3h6+ {[%clk 0:01:30.4]} 49... Kf5 {[%clk 0:00:45.5]} 50.
Rf6+ {[%clk 0:01:26]} 50... Kg4 {[%clk 0:00:42.1]} 51. Rxg7 {[%clk 0:01:25.1]}
51... Rh8 {[%clk 0:00:40.3]} 52. Rh6 {[%clk 0:01:19.6]} 52... Rf8 {[%clk
0:00:36.6]} 53. Ke3 {[%clk 0:01:15]} 53... a6 {[%clk 0:00:32.5]} 54. Rgh7 {[%clk
0:01:14.1]} 54... Kf5 {[%clk 0:00:30.9]} 55. Rf6+ {[%clk 0:01:11.5]} 55... Kg4
{[%clk 0:00:29.9]} 56. Rhxf7 {[%clk 0:01:08.9]} 56... Rh8 {[%clk 0:00:28.7]} 57.
Rh6 {[%clk 0:01:07.5]} 57... Rg8 {[%clk 0:00:27.9]} 58. Rxe6 {[%clk 0:01:05.8]}
58... Rh8 {[%clk 0:00:26.6]} 59. Rh6 {[%clk 0:01:04.9]} 59... Rg8 {[%clk
0:00:26]} 60. Rfh7 {[%clk 0:01:03]} 60... Rf8 {[%clk 0:00:24.9]} 61. Rh4+ {[%clk
0:01:01.4]} 61... Kf5 {[%clk 0:00:23.1]} 62. R7h6 {[%clk 0:01:00.7]} 62... Re8+
{[%clk 0:00:22.2]} 63. Kf3 {[%clk 0:00:59.3]} 63... Re1 {[%clk 0:00:20.6]} 64.
Rf6# {[%clk 0:00:57.7]} 1-0

[Event "Live Chess"]
[Site "Chess.com"]
[Date "2024.06.02"]
[Round "-"]
[White "ProfPoisson"]
[Black "DavrosLight"]
[Result "1-0"]
[WhiteElo "1341"]
[BlackElo "763"]
[TimeControl "300"]
[EndTime "0:45:23 PDT"]
[Termination "ProfPoisson won by resignation"]

1. e4 {[%clk 0:04:55.5]} 1... e5 {[%clk 0:04:58.8]} 2. Nf3 {[%clk 0:04:53]} 2...
Nc6 {[%clk 0:04:57.6]} 3. d4 {[%clk 0:04:51]} 3... exd4 {[%clk 0:04:40.8]} 4.
Bc4 {[%clk 0:04:47.1]} 4... Nf6 {[%clk 0:04:33.5]} 5. e5 {[%clk 0:04:39.4]} 5...
Bb4+ {[%clk 0:04:19.8]} 6. c3 {[%clk 0:04:35.6]} 6... dxc3 {[%clk 0:04:14.4]} 7.
bxc3 {[%clk 0:04:32.9]} 7... Qe7 {[%clk 0:03:55.8]} 8. cxb4 {[%clk 0:04:27.2]}
8... Nxe5 {[%clk 0:03:49.3]} 9. O-O {[%clk 0:04:23.4]} 9... Nxc4 {[%clk
0:03:43.3]} 10. Re1 {[%clk 0:04:21.7]} 10... Qxe1+ {[%clk 0:03:25.1]} 11. Qxe1+
{[%clk 0:04:19.1]} 11... Kd8 {[%clk 0:03:17.6]} 12. Bg5 {[%clk 0:04:11]} 12...
Re8 {[%clk 0:03:14.9]} 13. Bxf6+ {[%clk 0:04:08.4]} 13... gxf6 {[%clk
0:03:13.2]} 14. Qc3 {[%clk 0:04:03.2]} 1-0

[Event "Live Chess"]
[Site "Chess.com"]
[Date "2024.06.02"]
[Round "-"]
[White "hapehansen"]
[Black "Ferrarifan27"]
[Result "1/2-1/2"]
[WhiteElo "2248"]
[BlackElo "2122"]
[TimeControl "300"]
[EndTime "0:45:38 PDT"]
[Termination "Game drawn by repetition"]

1. Nf3 {[%clk 0:04:56.4]} 1... Nf6 {[%clk 0:04:56.5]} 2. c4 {[%clk 0:04:55]}
2... e6 {[%clk 0:04:54.8]} 3. g3 {[%clk 0:04:52.3]} 3... d5 {[%clk 0:04:53.2]}
4. Bg2 {[%clk 0:04:51.6]} 4... Be7 {[%clk 0:04:51.7]} 5. O-O {[%clk 0:04:50.9]}
5... O-O {[%clk 0:04:50.6]} 6. d4 {[%clk 0:04:49.4]} 6... dxc4 {[%clk
0:04:48.5]} 7. Qc2 {[%clk 0:04:48.1]} 7... Bd7 {[%clk 0:04:47.3]} 8. Qxc4 {[%clk
0:04:41.3]} 8... Bc6 {[%clk 0:04:44.1]} 9. Nc3 {[%clk 0:04:33.9]} 9... Nbd7
{[%clk 0:04:40.5]} 10. Bg5 {[%clk 0:04:29.4]} 10... h6 {[%clk 0:04:35.8]} 11.
Bxf6 {[%clk 0:04:27.1]} 11... Nxf6 {[%clk 0:04:32.9]} 12. Rfd1 {[%clk
0:04:23.2]} 12... Ne4 {[%clk 0:04:19.1]} 13. Nxe4 {[%clk 0:04:17.4]} 13... Bxe4
{[%clk 0:04:16.5]} 14. Rac1 {[%clk 0:04:16.8]} 14... c6 {[%clk 0:04:09.5]} 15.
Qc3 {[%clk 0:04:07.8]} 15... Bf6 {[%clk 0:04:00.6]} 16. a3 {[%clk 0:03:48.6]}
16... Qd5 {[%clk 0:03:56.6]} 17. Ne1 {[%clk 0:03:44.6]} 17... Bxg2 {[%clk
0:03:54.3]} 18. Nxg2 {[%clk 0:03:44.5]} 18... Rfd8 {[%clk 0:03:50.6]} 19. e3
{[%clk 0:03:35.9]} 19... Qf3 {[%clk 0:03:41.4]} 20. Ne1 {[%clk 0:03:32.8]} 20...
Qd5 {[%clk 0:03:37.3]} 21. Qc5 {[%clk 0:03:28.1]} 21... Qxc5 {[%clk 0:03:35.3]}
22. Rxc5 {[%clk 0:03:25.4]} 22... Rd5 {[%clk 0:03:33.8]} 23. Nd3 {[%clk
0:03:18.3]} 23... Rad8 {[%clk 0:03:27]} 24. Kf1 {[%clk 0:03:12.5]} 24... Be7
{[%clk 0:03:25]} 25. Rcc1 {[%clk 0:02:58.5]} 25... c5 {[%clk 0:03:12.4]} 26. Ke2
{[%clk 0:02:49.8]} 26... cxd4 {[%clk 0:03:10.3]} 27. e4 {[%clk 0:02:48.9]} 27...
Rb5 {[%clk 0:02:59.1]} 28. Rc4 {[%clk 0:02:37.7]} 28... f6 {[%clk 0:02:46.6]}
29. Rdc1 {[%clk 0:02:27.7]} 29... e5 {[%clk 0:02:42]} 30. Rc8 {[%clk 0:02:18]}
30... Rxc8 {[%clk 0:02:41]} 31. Rxc8+ {[%clk 0:02:15.1]} 31... Kf7 {[%clk
0:02:39.9]} 32. Rc7 {[%clk 0:02:13.5]} 32... Ke6 {[%clk 0:02:31.2]} 33. f4
{[%clk 0:02:10.9]} 33... a5 {[%clk 0:02:18.1]} 34. Kd2 {[%clk 0:02:00.9]} 34...
a4 {[%clk 0:02:14.7]} 35. Rc4 {[%clk 0:01:52.6]} 35... Ra5 {[%clk 0:02:07.2]}
36. Rc7 {[%clk 0:01:48.1]} 36... Rb5 {[%clk 0:01:57.6]} 37. Rc4 {[%clk
0:01:45.6]} 37... Ra5 {[%clk 0:01:56.7]} 38. Rc7 {[%clk 0:01:43.4]} 38... Rb5
{[%clk 0:01:47]} 1/2-1/2

[Event "Live Chess"]
[Site "Chess.com"]
[Date "2024.06.02"]
[Round "-"]
[White "RG_ChessLegend"]
[Black "Greenbecker"]
[Result "1-0"]
[WhiteElo "1510"]
[BlackElo "1745"]
[TimeControl "300"]
[EndTime "0:45:55 PDT"]
[Termination "RG_ChessLegend won by resignation"]

1. e4 {[%clk 0:04:58.6]} 1... Nc6 {[%clk 0:04:57.7]} 2. Nf3 {[%clk 0:04:57.6]}
2... d6 {[%clk 0:04:55.9]} 3. d4 {[%clk 0:04:53.9]} 3... g6 {[%clk 0:04:50.6]}
4. Bd3 {[%clk 0:04:50.8]} 4... Bg7 {[%clk 0:04:49.5]} 5. c3 {[%clk 0:04:48.9]}
5... Bg4 {[%clk 0:04:46.2]} 6. O-O {[%clk 0:04:47]} 6... e6 {[%clk 0:04:44.2]}
7. Bf4 {[%clk 0:04:44.7]} 7... Nge7 {[%clk 0:04:42.9]} 8. h3 {[%clk 0:04:43.6]}
8... Bxf3 {[%clk 0:04:41.3]} 9. Qxf3 {[%clk 0:04:42.5]} 9... O-O {[%clk
0:04:40.9]} 10. Nd2 {[%clk 0:04:40]} 10... e5 {[%clk 0:04:39.6]} 11. dxe5 {[%clk
0:04:37.4]} 11... Nxe5 {[%clk 0:04:38.5]} 12. Bxe5 {[%clk 0:04:35.8]} 12... Bxe5
{[%clk 0:04:36.2]} 13. Nc4 {[%clk 0:04:34.7]} 13... Bg7 {[%clk 0:04:33.8]} 14.
Rad1 {[%clk 0:04:32.8]} 14... f5 {[%clk 0:04:32.8]} 15. exf5 {[%clk 0:04:29.4]}
15... Nxf5 {[%clk 0:04:31.8]} 16. Qd5+ {[%clk 0:04:13.4]} 16... Kh8 {[%clk
0:04:28.8]} 17. Qxb7 {[%clk 0:04:08.1]} 17... d5 {[%clk 0:04:16.5]} 18. Bxf5
{[%clk 0:04:03.7]} 18... Rxf5 {[%clk 0:04:09.8]} 19. Ne3 {[%clk 0:04:02.5]}
19... Rb8 {[%clk 0:03:52.8]} 20. Qxa7 {[%clk 0:03:56.1]} 20... Ra8 {[%clk
0:03:14.1]} 21. Qb7 {[%clk 0:03:48.2]} 21... Rb8 {[%clk 0:03:12.9]} 22. Qc6
{[%clk 0:03:44.6]} 22... Rf6 {[%clk 0:03:10.1]} 23. Qxd5 {[%clk 0:03:41]} 23...
Rd6 {[%clk 0:03:00.6]} 24. Qc5 {[%clk 0:03:19.5]} 24... Rxb2 {[%clk 0:02:54]}
25. Rxd6 {[%clk 0:03:06.9]} 25... cxd6 {[%clk 0:02:52.1]} 26. Qa3 {[%clk
0:02:59.4]} 26... Rd2 {[%clk 0:02:44.3]} 27. Rd1 {[%clk 0:02:52.9]} 27... Rxd1+
{[%clk 0:02:39.3]} 28. Nxd1 {[%clk 0:02:52.8]} 28... h5 {[%clk 0:02:34.9]} 29.
Qb3 {[%clk 0:02:47.4]} 29... Qc7 {[%clk 0:02:31.1]} 30. a4 {[%clk 0:02:44.3]}
30... Qa5 {[%clk 0:02:27.9]} 31. Qb8+ {[%clk 0:02:36.6]} 31... Kh7 {[%clk
0:02:25.8]} 32. Qxd6 {[%clk 0:02:32.9]} 32... Qxa4 {[%clk 0:02:23.3]} 33. Qd2
{[%clk 0:02:26.2]} 33... Be5 {[%clk 0:02:17.6]} 34. g3 {[%clk 0:02:19]} 34... h4
{[%clk 0:02:04.1]} 35. g4 {[%clk 0:01:59.7]} 35... Qe4 {[%clk 0:01:54.7]} 36.
Qd7+ {[%clk 0:01:55]} 36... Kh6 {[%clk 0:01:49.9]} 37. Qd2+ {[%clk 0:01:46.8]}
37... Bf4 {[%clk 0:01:41.4]} 38. Qd4 {[%clk 0:01:40.4]} 38... Qf3 {[%clk
0:01:33.3]} 39. Qh8+ {[%clk 0:01:31.3]} 39... Kg5 {[%clk 0:01:30.9]} 40. Qd8+
{[%clk 0:01:29]} 40... Kh6 {[%clk 0:01:29.3]} 41. Qxh4+ {[%clk 0:01:27.7]} 41...
Kg7 {[%clk 0:01:27.3]} 42. Qe7+ {[%clk 0:01:15.1]} 42... Kh6 {[%clk 0:01:23.2]}
43. Qd7 {[%clk 0:01:03.2]} 43... Qxh3 {[%clk 0:01:17.1]} 44. g5+ {[%clk
0:00:57.7]} 44... Bxg5 {[%clk 0:01:08.7]} 45. Qxh3+ {[%clk 0:00:56.7]} 1-0

[Event "Live Chess"]
[Site "Chess.com"]
[Date "2024.06.02"]
[Round "-"]
[White "Kyrylo7770"]
[Black "peteopeteo"]
[Result "0-1"]
[WhiteElo "1619"]
[BlackElo "1549"]
[TimeControl "300"]
[EndTime "0:46:19 PDT"]
[Termination "peteopeteo won by resignation"]

1. d4 {[%clk 0:04:59]} 1... d5 {[%clk 0:04:59.2]} 2. Nf3 {[%clk 0:04:58.5]} 2...
Bf5 {[%clk 0:04:58.6]} 3. Bg5 {[%clk 0:04:57.9]} 3... h6 {[%clk 0:04:56.2]} 4.
Bh4 {[%clk 0:04:57]} 4... Nf6 {[%clk 0:04:54.8]} 5. e3 {[%clk 0:04:53.3]} 5...
e6 {[%clk 0:04:53]} 6. c3 {[%clk 0:04:52.8]} 6... Be7 {[%clk 0:04:52.3]} 7. Bd3
{[%clk 0:04:52.3]} 7... Bxd3 {[%clk 0:04:50.6]} 8. Qxd3 {[%clk 0:04:51]} 8...
Ne4 {[%clk 0:04:50.1]} 9. Bxe7 {[%clk 0:04:50.1]} 9... Qxe7 {[%clk 0:04:50]} 10.
Ne5 {[%clk 0:04:49.8]} 10... Nd7 {[%clk 0:04:46.5]} 11. f4 {[%clk 0:04:48.6]}
11... Qh4+ {[%clk 0:04:40.9]} 12. g3 {[%clk 0:04:46.8]} 12... Nxg3 {[%clk
0:04:40]} 13. Nf3 {[%clk 0:04:37.3]} 13... Qh5 {[%clk 0:04:29.8]} 14. Kf2 {[%clk
0:04:36]} 14... Ne4+ {[%clk 0:04:26.4]} 15. Kg2 {[%clk 0:04:34.4]} 15... Qg6+
{[%clk 0:04:22.3]} 16. Kf1 {[%clk 0:04:33.5]} 16... Ng3+ {[%clk 0:04:20.5]} 17.
hxg3 {[%clk 0:04:32.4]} 17... Qxd3+ {[%clk 0:04:19.6]} 18. Kg2 {[%clk 0:04:31]}
18... Qe2+ {[%clk 0:04:06]} 0-1

[Event "Live Chess"]
[Site "Chess.com"]
[Date "2024.06.02"]
[Round "-"]
[White "Jadmis_2011"]
[Black "f4nomore"]
[Result "1-0"]
[WhiteElo "1460"]
[BlackElo "1248"]
[TimeControl "300"]
[EndTime "0:46:37 PDT"]
[Termination "Jadmis_2011 won on time"]

1. e4 {[%clk 0:04:53.6]} 1... g6 {[%clk 0:04:59.9]} 2. d4 {[%clk 0:04:51.9]}
2... Bg7 {[%clk 0:04:58.6]} 3. Nf3 {[%clk 0:04:50.9]} 3... d6 {[%clk 0:04:57.5]}
4. Nc3 {[%clk 0:04:50.6]} 4... Nd7 {[%clk 0:04:54.7]} 5. Be3 {[%clk 0:04:50]}
5... b6 {[%clk 0:04:53]} 6. Bd3 {[%clk 0:04:49]} 6... Bb7 {[%clk 0:04:51.9]} 7.
O-O {[%clk 0:04:43.7]} 7... c5 {[%clk 0:04:50.5]} 8. d5 {[%clk 0:04:38.5]} 8...
Ngf6 {[%clk 0:04:47.4]} 9. h3 {[%clk 0:04:30.5]} 9... O-O {[%clk 0:04:36.4]} 10.
Qd2 {[%clk 0:04:23.8]} 10... Rc8 {[%clk 0:04:35.3]} 11. Bh6 {[%clk 0:04:10.9]}
11... c4 {[%clk 0:04:34]} 12. Bxg7 {[%clk 0:04:09.1]} 12... Kxg7 {[%clk
0:04:31.1]} 13. Be2 {[%clk 0:04:07.6]} 13... Nc5 {[%clk 0:04:26.1]} 14. Bxc4
{[%clk 0:03:42]} 14... Ncxe4 {[%clk 0:04:17.7]} 15. Nxe4 {[%clk 0:03:38.2]}
15... Nxe4 {[%clk 0:04:15.4]} 16. Qd4+ {[%clk 0:03:33.9]} 16... Nf6 {[%clk
0:04:12.6]} 17. Bb3 {[%clk 0:03:23.9]} 17... Rc5 {[%clk 0:04:03.7]} 18. c4
{[%clk 0:03:20.1]} 18... b5 {[%clk 0:03:58]} 19. cxb5 {[%clk 0:03:16.4]} 19...
Rxb5 {[%clk 0:03:53.3]} 20. Qxa7 {[%clk 0:03:15.2]} 20... Bxd5 {[%clk
0:03:40.6]} 21. Bxd5 {[%clk 0:03:06.8]} 21... Nxd5 {[%clk 0:03:36.2]} 22. Qd4+
{[%clk 0:03:04.8]} 22... Nf6 {[%clk 0:03:33.4]} 23. b3 {[%clk 0:02:59.4]} 23...
Rd5 {[%clk 0:03:09.6]} 24. Qb2 {[%clk 0:02:46.9]} 24... Qb6 {[%clk 0:02:59.8]}
25. Rfd1 {[%clk 0:02:40.8]} 25... Rxd1+ {[%clk 0:02:50.3]} 26. Rxd1 {[%clk
0:02:40.7]} 26... Rc8 {[%clk 0:02:34.9]} 27. Rc1 {[%clk 0:02:32.3]} 27... Rxc1+
{[%clk 0:02:25.7]} 28. Qxc1 {[%clk 0:02:32.2]} 28... Qa6 {[%clk 0:02:11.4]} 29.
Qb2 {[%clk 0:02:22.2]} 29... h6 {[%clk 0:02:03]} 30. a4 {[%clk 0:02:16.4]} 30...
e5 {[%clk 0:01:57.5]} 31. Qc3 {[%clk 0:02:05.4]} 31... Qe2 {[%clk 0:01:40]} 32.
Qd2 {[%clk 0:01:54.6]} 32... Qxd2 {[%clk 0:01:22.3]} 33. Nxd2 {[%clk 0:01:54.5]}
33... Nd5 {[%clk 0:01:19.5]} 34. Nc4 {[%clk 0:01:50.3]} 34... Nb4 {[%clk
0:01:06.5]} 35. Nxd6 {[%clk 0:01:47]} 35... f5 {[%clk 0:01:04.2]} 36. a5 {[%clk
0:01:39.8]} 36... e4 {[%clk 0:01:01.3]} 37. Kf1 {[%clk 0:01:37.2]} 37... Kf6
{[%clk 0:00:59.1]} 38. Nc4 {[%clk 0:01:34.2]} 38... Ke6 {[%clk 0:00:55]} 39. Ke2
{[%clk 0:01:29.7]} 39... Kd5 {[%clk 0:00:53]} 40. Ke3 {[%clk 0:01:19.9]} 40...
g5 {[%clk 0:00:48.5]} 41. g3 {[%clk 0:01:18.3]} 41... Nc2+ {[%clk 0:00:39.3]}
42. Kd2 {[%clk 0:01:14.9]} 42... Nb4 {[%clk 0:00:26.8]} 43. Kc3 {[%clk
0:01:01.5]} 43... Na6 {[%clk 0:00:21.5]} 44. b4 {[%clk 0:00:57.1]} 44... h5
{[%clk 0:00:15.1]} 45. b5 {[%clk 0:00:51.2]} 45... Nb8 {[%clk 0:00:08.8]} 46.
Kb4 {[%clk 0:00:49.4]} 46... f4 {[%clk 0:00:05.2]} 47. gxf4 {[%clk 0:00:45.9]}
47... gxf4 {[%clk 0:00:00.7]} 48. a6 {[%clk 0:00:45.2]} 1-0

[Event "Live Chess"]
[Site "Chess.com"]
[Date "2024.06.02"]
[Round "-"]
[White "Vladyslav2008"]
[Black "vincents82"]
[Result "1-0"]
[WhiteElo "2255"]
[BlackElo "2005"]
[TimeControl "300"]
[EndTime "0:46:48 PDT"]
[Termination "Vladyslav2008 won by resignation"]

1. d4 {[%clk 0:04:54.4]} 1... d5 {[%clk 0:04:58.7]} 2. c4 {[%clk 0:04:52.8]}
2... c6 {[%clk 0:04:57.6]} 3. Nf3 {[%clk 0:04:51]} 3... Nf6 {[%clk 0:04:56.5]}
4. Nc3 {[%clk 0:04:49]} 4... dxc4 {[%clk 0:04:54.8]} 5. a4 {[%clk 0:04:47.5]}
5... Bf5 {[%clk 0:04:53.3]} 6. e3 {[%clk 0:04:46.8]} 6... e6 {[%clk 0:04:51.4]}
7. Bxc4 {[%clk 0:04:46.2]} 7... Bb4 {[%clk 0:04:50]} 8. O-O {[%clk 0:04:43.7]}
8... Nbd7 {[%clk 0:04:48.3]} 9. Qe2 {[%clk 0:04:38.5]} 9... Bg6 {[%clk
0:04:43.8]} 10. Bd2 {[%clk 0:04:19.6]} 10... O-O {[%clk 0:04:40.5]} 11. Rfe1
{[%clk 0:03:58.6]} 11... Bh5 {[%clk 0:04:38.6]} 12. e4 {[%clk 0:03:56.9]} 12...
e5 {[%clk 0:04:37.5]} 13. d5 {[%clk 0:03:24.4]} 13... Nb6 {[%clk 0:04:27.4]} 14.
Bb3 {[%clk 0:03:20.3]} 14... cxd5 {[%clk 0:04:25.6]} 15. Nxd5 {[%clk 0:03:16.5]}
15... Nbxd5 {[%clk 0:04:19.9]} 16. exd5 {[%clk 0:03:13]} 16... Bxd2 {[%clk
0:04:12.8]} 17. Qxd2 {[%clk 0:03:10.8]} 17... Bxf3 {[%clk 0:04:11.5]} 18. gxf3
{[%clk 0:03:10.3]} 18... Qd6 {[%clk 0:04:07]} 19. Qg5 {[%clk 0:02:59.9]} 19...
Rfe8 {[%clk 0:04:01.1]} 20. Rad1 {[%clk 0:02:53.8]} 20... h6 {[%clk 0:03:59.2]}
21. Qg3 {[%clk 0:02:47.5]} 21... Nh5 {[%clk 0:03:51.4]} 22. Qh4 {[%clk
0:02:40.1]} 22... Nf4 {[%clk 0:03:46.7]} 23. Re3 {[%clk 0:02:38]} 23... Qg6+
{[%clk 0:03:16.1]} 24. Qg3 {[%clk 0:02:36.2]} 24... Qd6 {[%clk 0:03:02.3]} 25.
Kh1 {[%clk 0:02:32]} 25... Rac8 {[%clk 0:02:56.8]} 26. Rg1 {[%clk 0:02:29.1]}
26... g5 {[%clk 0:02:55.5]} 27. h4 {[%clk 0:02:27]} 27... f6 {[%clk 0:02:54.5]}
28. Qg4 {[%clk 0:02:14.5]} 28... Kg7 {[%clk 0:02:49.2]} 29. Ba2 {[%clk 0:02:07]}
29... Rc2 {[%clk 0:02:44.7]} 30. Bb1 {[%clk 0:02:03.8]} 30... Rxf2 {[%clk
0:02:38]} 31. Qf5 {[%clk 0:02:02.6]} 31... Rh8 {[%clk 0:02:26.4]} 32. Rb3 {[%clk
0:01:58.8]} 32... b6 {[%clk 0:02:24.3]} 33. Rc3 {[%clk 0:01:57.5]} 33... e4
{[%clk 0:02:11.9]} 34. Rc6 {[%clk 0:01:46.9]} 34... Qe7 {[%clk 0:01:57.1]} 35.
Bxe4 {[%clk 0:01:42.5]} 35... Rd2 {[%clk 0:01:11.5]} 36. Rgc1 {[%clk 0:01:35]}
36... Rd8 {[%clk 0:01:06.6]} 37. Rc7 {[%clk 0:01:30.6]} 1-0

[Event "Live Chess"]
[Site "Chess.com"]
[Date "2024.06.02"]
[Round "-"]
[White "SimonBoy1"]
[Black "NAZRIZ1977"]
[Result "0-1"]
[WhiteElo "1526"]
[BlackElo "2128"]
[TimeControl "300"]
[EndTime "0:47:00 PDT"]
[Termination "NAZRIZ1977 won by resignation"]

1. e4 {[%clk 0:04:59.1]} 1... d6 {[%clk 0:04:56.9]} 2. d4 {[%clk 0:04:58.1]}
2... Nf6 {[%clk 0:04:56]} 3. Nc3 {[%clk 0:04:55.7]} 3... Nbd7 {[%clk 0:04:55.1]}
4. Bd3 {[%clk 0:04:55]} 4... e5 {[%clk 0:04:54]} 5. d5 {[%clk 0:04:53.3]} 5...
Be7 {[%clk 0:04:51.5]} 6. f4 {[%clk 0:04:51.9]} 6... exf4 {[%clk 0:04:48.2]} 7.
Bxf4 {[%clk 0:04:51.8]} 7... O-O {[%clk 0:04:47.5]} 8. Qf3 {[%clk 0:04:51.3]}
8... Ne5 {[%clk 0:04:42.8]} 9. Bxe5 {[%clk 0:04:45.7]} 9... dxe5 {[%clk
0:04:41.7]} 10. O-O-O {[%clk 0:04:44.4]} 10... Bg4 {[%clk 0:04:38.2]} 11. Qg3
{[%clk 0:04:40.3]} 11... Bxd1 {[%clk 0:04:36.7]} 12. Kxd1 {[%clk 0:04:40.2]}
12... Qd7 {[%clk 0:04:35.4]} 13. Nf3 {[%clk 0:04:39.6]} 13... Qg4 {[%clk
0:04:34.1]} 14. Qxe5 {[%clk 0:04:32]} 14... Qxg2 {[%clk 0:04:26.4]} 15. Rf1
{[%clk 0:04:27.2]} 15... Bd6 {[%clk 0:04:20.9]} 16. Qf5 {[%clk 0:04:25.9]} 16...
Qg4 {[%clk 0:03:58.1]} 17. e5 {[%clk 0:04:01.6]} 17... Bxe5 {[%clk 0:03:56.7]}
18. Qxg4 {[%clk 0:03:56.1]} 18... Nxg4 {[%clk 0:03:55.4]} 19. Rg1 {[%clk
0:03:46.5]} 19... Nxh2 {[%clk 0:03:42.7]} 20. Rg2 {[%clk 0:03:44.8]} 20... Nxf3
{[%clk 0:03:40.9]} 0-1